bitfinex-derivatives/quotes_SOLF0:USTF0_20250319
["timestamp","ask_amount","ask_price","bid_price","bid_amount"]
[1742377561184,27.84,126.17,126.12,12.9434238]
[1742377561378,57.03971413,126.19,126.14,12.9434238]
[1742377561577,44.09629033,126.19,126.18,12.9434238]
[1742377561778,88.19258067,126.2,126.18,12.9434238]
[1742377561982,88.19258067,126.2,126.19,20.8677238]
[1742377562183,88.19258067,126.2,126.19,7.9243]
[1742377562790,101.13600447,126.2,126.18,0.05894018]
[1742377562990,12.9434238,126.19,126.18,0.05894018]
[1742377564093,40.7834238,126.2,126.18,0.05894018]
[1742377564492,27.84,126.2,126.18,0.05894018]
[1742377564795,0.05143242,126.21,126.19,7.9243]
[1742377566690,12.99485622,126.21,126.18,7.98364018]
[1742377567193,40.7634238,126.2,126.18,0.05894018]
[1742377567794,40.7634238,126.2,126.18,7.98354018]
[1742377567994,27.82,126.2,126.18,7.98354018]
[1742377568194,27.82,126.2,126.18,0.05894018]
[1742377568794,27.82,126.2,126.18,13.00236398]
[1742377569496,27.82,126.2,126.19,7.9243]
[1742377569796,0.05143242,126.21,126.19,7.9243]
[1742377572999,0.05143242,126.21,126.18,13.00236398]
[1742377573594,0.05143242,126.21,126.2,7.9237]
[1742377575400,40.7634238,126.28,126.2,40.7634238]
[1742377575601,40.7634238,126.28,126.23,12.9434238]
[1742377575797,2.197,126.32,126.23,12.9434238]
[1742377576101,12.9434238,126.29,126.24,40.7634238]
[1742377576302,12.9434238,126.28,126.24,40.7634238]
[1742377576496,12.9434238,126.26,126.25,0.05672805]
[1742377576694,12.9434238,126.26,126.21,2.0603]
[1742377576897,12.9434238,126.24,126.21,2.0603]
[1742377577094,27.84,126.26,126.22,12.9434238]
[1742377577798,0.05501319,126.25,126.23,0.05940458]
[1742377577998,0.05501319,126.25,126.23,13.00282838]
[1742377578200,0.05501319,126.25,126.23,20.92422838]
[1742377578699,0.05501319,126.25,126.23,13.00282838]
[1742377578903,0.05501319,126.25,126.23,0.05940458]
[1742377579809,12.99843699,126.25,126.23,0.05940458]
[1742377580003,12.9434238,126.24,126.23,0.05940458]
[1742377580208,40.7834238,126.24,126.23,0.05940458]
[1742377580414,48.7046238,126.24,126.23,0.05940458]
[1742377580708,40.7834238,126.24,126.23,0.05940458]
[1742377580902,27.84,126.24,126.23,0.05940458]
[1742377582510,35.7612,126.24,126.23,0.05940458]
[1742377582804,48.7046238,126.24,126.23,0.05940458]
[1742377587003,7.9236,126.21,126.15,275.4061]
[1742377587215,40.7634238,126.22,126.18,12.9434238]
[1742377587510,40.7634238,126.22,126.16,27.82]
[1742377587511,27.82,126.22,126.19,12.9434238]
[1742377587711,27.82,126.22,126.2,7.9236]
[1742377587902,27.82,126.22,126.19,12.9434238]
[1742377588305,35.80221956,126.22,126.19,20.92638679]
[1742377588908,27.87971956,126.22,126.19,0.05886299]
[1742377589110,40.82314336,126.22,126.19,0.05886299]
[1742377589915,7.9237,126.2,126.19,0.05886299]
[1742377590509,27.87971956,126.22,126.19,13.00228679]
[1742377590709,27.87971956,126.22,126.2,12.9434238]
[1742377590906,359.0,126.36,126.2,6.4717119]
[1742377591108,27.9,126.28,126.24,12.9434238]
[1742377591308,27.9,126.27,126.24,12.9434238]
[1742377591514,35.839,126.28,126.24,12.9434238]
[1742377591715,27.92,126.28,126.25,12.9434238]
[1742377592206,27.97515844,126.28,126.25,12.99381804]
[1742377593011,27.97515844,126.28,126.25,20.91431804]
[1742377593211,27.97515844,126.28,126.25,7.97089424]
[1742377593412,27.97515844,126.28,126.26,7.9199]
[1742377593921,27.97515844,126.28,126.25,0.05039424]
[1742377594117,27.97515844,126.28,126.25,7.97049424]
[1742377594318,27.97515844,126.28,126.25,0.05039424]
[1742377594719,27.97515844,126.28,126.25,7.97069424]
[1742377595323,35.89395844,126.28,126.25,7.97069424]
[1742377596015,7.9193,126.27,126.25,0.05039424]
[1742377596317,27.93515844,126.28,126.25,0.05039424]
[1742377596510,27.93515844,126.28,126.26,7.9194]
[1742377597314,35.85395844,126.28,126.26,7.9194]
[1742377597515,35.85395844,126.28,126.25,7.97069424]
[1742377598619,35.85395844,126.28,126.26,7.9199]
[1742377598925,35.85395844,126.28,126.25,0.05039424]
[1742377600322,35.85395844,126.28,126.25,7.97069424]
[1742377601222,7.92,126.26,126.25,0.05039424]
[1742377601729,35.78,126.26,126.25,0.05039424]
[1742377614032,7.9226,126.22,126.2,7.9235]
[1742377614240,27.8,126.23,126.2,7.9235]
[1742377614942,7.9225,126.22,126.2,7.9235]
[1742377615143,7.9225,126.22,126.19,7.924]
[1742377615338,7.98265288,126.22,126.2,0.05303916]
[1742377615544,21.0008945,126.22,126.2,0.05303916]
[1742377617246,7.98265288,126.22,126.2,0.05303916]
[1742377619147,0.06015288,126.22,126.2,7.97673916]
[1742377620246,0.06015288,126.22,126.21,7.9231]
[1742377628654,0.06015288,126.22,126.2,7.97653916]
[1742377629761,0.06015288,126.22,126.2,0.05303916]
[1742377630260,7.98305288,126.22,126.2,0.05303916]
[1742377630761,0.06015288,126.22,126.2,0.05303916]
[1742377630958,27.8,126.21,126.2,0.05303916]
[1742377631555,35.7231,126.21,126.2,0.05303916]
[1742377632756,48.74134162,126.21,126.2,0.05303916]
[1742377633358,40.81824162,126.21,126.2,0.05303916]
[1742377633663,27.8,126.21,126.2,0.05303916]
[1742377634253,27.8,126.21,126.2,7.97673916]
[1742377635265,27.8,126.21,126.2,0.05303916]
[1742377638266,27.8,126.21,126.2,7.97673916]
[1742377645171,0.06015288,126.22,126.21,7.9231]
[1742377652978,13.0783945,126.22,126.2,0.05303916]
[1742377653768,21.0011945,126.22,126.2,0.05303916]
[1742377654176,13.0783945,126.22,126.2,0.05303916]
[1742377654683,13.0783945,126.22,126.2,7.97653916]
[1742377655881,21.0008945,126.22,126.2,7.97653916]
[1742377656468,21.0008945,126.22,126.2,0.05303916]
[1742377657474,7.9231,126.21,126.2,0.05303916]
[1742377659585,20.94134162,126.21,126.2,0.05303916]
[1742377660783,48.74134162,126.21,126.2,0.05303916]
[1742377661678,40.81824162,126.21,126.15,273.28]
[1742377661889,20.94374162,126.18,126.14,10.98637409]
[1742377662280,20.94374162,126.18,126.15,7.9265]
[1742377662983,7.9257,126.17,126.15,0.05876615]
[1742377663786,13.0698474,126.18,126.15,7.98556615]
[1742377663787,20.9948474,126.18,126.15,7.98556615]
[1742377665185,0.05160578,126.18,126.15,13.07700777]
[1742377665487,0.05160578,126.18,126.16,13.01824162]
[1742377665789,0.05160578,126.18,126.17,20.94384162]
[1742377667490,0.05160578,126.18,126.17,7.9256]
[1742377670282,5.78e-06,126.18,126.17,20.94384162]
[1742377671598,5.78e-06,126.18,126.17,23.05314162]
[1742377673294,5.78e-06,126.18,126.17,10.0349]
[1742377674394,5.78e-06,126.18,126.17,23.05314162]
[1742377678195,5.78e-06,126.18,126.17,10.0349]
[1742377680304,5.78e-06,126.18,126.17,23.05314162]
[1742377680599,2.1571,126.27,126.17,50.84754162]
[1742377680798,42.97534162,126.27,126.22,13.01824162]
[1742377680996,27.8,126.27,126.25,7.9203]
[1742377681399,40.81824162,126.27,126.25,7.9203]
[1742377681700,40.87160837,126.27,126.25,7.97037599]
[1742377682794,13.07160837,126.27,126.25,7.97037599]
[1742377683702,13.07160837,126.27,126.26,7.92]
[1742377684003,20.99090837,126.27,126.25,0.05007599]
[1742377684704,20.99090837,126.27,126.25,7.97037599]
[1742377684903,20.99090837,126.27,126.25,0.05007599]
[1742377685804,20.99090837,126.27,126.25,7.97067599]
[1742377686007,0.05336675,126.27,126.25,0.05007599]
[1742377687506,0.05336675,126.27,126.26,7.92]
[1742377690502,0.05336675,126.27,126.26,20.93824162]
[1742377692212,0.05336675,126.27,126.26,7.92]
[1742377701419,13.01824162,126.3,126.28,7.9187]
[1742377702417,13.06870633,126.3,126.28,7.97537249]
[1742377703007,13.01824162,126.29,126.28,0.05667249]
[1742377703220,40.79824162,126.29,126.23,27.78]
[1742377703416,20.93824162,126.26,126.23,7.9213]
[1742377704518,20.99146113,126.26,126.23,7.98134202]
[1742377705019,20.99146113,126.26,126.24,7.9212]
[1742377705314,0.05321951,126.26,126.24,7.9212]
[1742377706420,0.05321951,126.26,126.23,13.07828364]
[1742377706722,0.05321951,126.26,126.25,7.9206]
[1742377710627,0.05321951,126.26,126.25,20.93884162]
[1742377711822,0.05321951,126.26,126.25,48.71884162]
[1742377715033,0.05321951,126.26,126.25,35.7006]
[1742377715627,0.05321951,126.26,126.25,48.71884162]
[1742377719035,29.853,126.3,126.29,7.9181]
[1742377719732,2.073,126.3,126.29,7.9181]
[1742377720134,42.93984162,126.31,126.3,7.9174]
[1742377720135,29.9216,126.31,126.3,7.9174]
[1742377720335,29.97896436,126.31,126.3,7.9174]
[1742377720737,27.83736436,126.31,126.3,7.9174]
[1742377721335,0.05736436,126.31,126.3,7.9174]
[1742377721835,13.07560598,126.31,126.29,7.9178]
[1742377722033,13.01824162,126.3,126.29,7.9178]
[1742377722337,40.85560598,126.31,126.29,7.9178]
[1742377723131,40.85560598,126.31,126.28,7.97732122]
[1742377723329,13.01824162,126.3,126.28,7.97732122]
[1742377724331,13.01824162,126.29,126.28,0.05882122]
[1742377724635,40.79824162,126.29,126.23,42.95304162]
[1742377724834,13.01824162,126.28,126.23,42.95304162]
[1742377725035,20.93724162,126.28,126.23,42.95304162]
[1742377725536,20.93724162,126.28,126.25,7.9201]
[1742377725736,7.96981843,126.27,126.25,7.9201]
[1742377726735,20.98806005,126.27,126.25,7.9201]
[1742377727039,20.93824162,126.26,126.24,7.98015521]
[1742377727230,7.92,126.26,126.24,7.98015521]
[1742377727934,48.76846005,126.27,126.24,7.98015521]
[1742377733640,7.92,126.26,126.24,7.98015521]
[1742377735041,48.76836005,126.27,126.24,7.98015521]
[1742377735240,13.01824162,126.26,126.24,7.98015521]
[1742377735842,48.76836005,126.27,126.24,7.98015521]
[1742377736143,40.84876005,126.27,126.25,7.9205]
[1742377737949,40.84876005,126.27,126.24,7.97995521]
[1742377738642,48.76806005,126.27,126.24,7.97995521]
[1742377740047,48.76806005,126.27,126.25,7.9204]
[1742377741047,48.76806005,126.27,126.24,7.97995521]
[1742377744346,7.9201,126.26,126.24,7.97995521]
[1742377746549,48.73884162,126.25,126.24,0.05905521]
[1742377747649,40.86876005,126.27,126.24,0.05905521]
[1742377747846,0.05051843,126.27,126.25,13.01824162]
[1742377748043,0.05051843,126.27,126.26,13.01824162]
[1742377748239,0.05051843,126.27,126.26,20.93824162]
[1742377756653,13.06876005,126.27,126.24,0.05905521]
[1742377756856,13.01824162,126.26,126.24,0.05905521]
[1742377757049,13.01824162,126.26,126.24,7.97995521]
[1742377757254,40.84876005,126.27,126.24,7.97995521]
[1742377757456,40.84876005,126.27,126.24,0.05905521]
[1742377757757,40.84876005,126.27,126.25,7.9203]
[1742377759258,48.76816005,126.27,126.25,7.9203]
[1742377759459,48.76816005,126.27,126.24,7.97995521]
[1742377759955,7.92,126.26,126.24,0.05905521]
[1742377760162,13.01824162,126.25,126.24,0.05905521]
[1742377760461,13.01824162,126.26,126.24,7.97985521]
[1742377760860,13.01824162,126.26,126.24,0.05905521]
[1742377761168,13.01824162,126.26,126.25,7.9206]
[1742377761364,40.84876005,126.27,126.25,7.9206]
[1742377761560,27.83051843,126.27,126.25,7.9206]
[1742377762260,27.83051843,126.27,126.24,0.05905521]
[1742377762570,0.05051843,126.27,126.24,13.07729683]
[1742377762873,0.05051843,126.27,126.24,0.05905521]
[1742377763568,0.05051843,126.27,126.25,7.9202]
[1742377764268,0.05051843,126.27,126.24,0.05905521]
[1742377765668,0.05051843,126.27,126.26,7.92]
[1742377768471,13.06876005,126.27,126.24,0.05905521]
[1742377768771,40.79824162,126.26,126.24,0.05905521]
[1742377768963,48.71854162,126.26,126.24,7.98015521]
[1742377769367,40.79824162,126.26,126.24,0.05905521]
[1742377770073,27.78,126.26,126.25,7.9206]
[1742377770464,0.05051843,126.27,126.24,13.07729683]
[1742377774874,0.05051843,126.27,126.26,7.92]
[1742377775674,0.05051843,126.27,126.26,20.93824162]
[1742377775870,13.01824162,126.32,126.29,7.9181]
[1742377776075,27.78,126.31,126.29,7.9181]
[1742377776876,20.93444162,126.32,126.29,7.9181]
[1742377777072,20.93444162,126.32,126.29,7.97601704]
[1742377777073,40.87344429,126.31,126.29,7.97601704]
[1742377777676,27.85520267,126.31,126.3,7.9174]
[1742377779976,40.87344429,126.31,126.3,7.9174]
[1742377780173,40.87344429,126.31,126.29,7.97561704]
[1742377780382,13.01824162,126.3,126.29,7.97561704]
[1742377780681,40.87344429,126.31,126.29,0.05791704]
[1742377781475,40.87344429,126.31,126.3,7.9174]
[1742377782481,40.85344429,126.31,126.3,7.9174]
[1742377785783,40.85344429,126.31,126.29,7.97561704]
[1742377790381,40.85344429,126.31,126.3,7.9174]
[1742377791381,40.85344429,126.31,126.29,7.97561704]
[1742377792682,13.01824162,126.3,126.29,0.05791704]
[1742377792884,40.85344429,126.31,126.29,0.05791704]
[1742377794183,27.83520267,126.31,126.3,7.9174]
[1742377795279,0.05520267,126.31,126.3,7.9174]
[1742377795484,6.1954,126.34,126.33,7.9156]
[1742377795485,27.78,126.34,126.33,7.9156]
[1742377796483,40.79824162,126.35,126.32,7.9158]
[1742377796783,13.01824162,126.34,126.32,7.96683772]
[1742377798887,13.01824162,126.34,126.33,7.9156]
[1742377798888,40.79824162,126.34,126.33,7.9156]
[1742377799289,27.78,126.34,126.33,7.9156]
[1742377799882,13.07145332,126.35,126.32,0.05103772]
[1742377800090,0.0532117,126.35,126.33,13.01824162]
[1742377801478,0.0532117,126.35,126.34,7.9149]
[1742377802492,27.78,126.37,126.34,7.9149]
[1742377802493,13.01824162,126.42,126.39,7.9117]
[1742377802691,13.01824162,126.42,126.38,13.01824162]
[1742377802891,27.78,126.42,126.39,13.01824162]
[1742377803081,27.78,126.42,126.41,7.9106]
[1742377803485,13.01824162,126.43,126.38,13.01824162]
[1742377803686,40.85602098,126.43,126.4,7.96316951]
[1742377804193,13.01824162,126.42,126.4,0.05226951]
[1742377804584,27.78,126.42,126.4,0.05226951]
[1742377804788,0.05777936,126.43,126.4,0.05226951]
[1742377805790,13.07602098,126.43,126.4,0.05226951]
[1742377806990,20.98572098,126.43,126.4,0.05226951]
[1742377808193,7.91,126.42,126.4,0.05226951]
[1742377809993,27.81777936,126.43,126.4,0.05226951]
[1742377810597,35.72707936,126.43,126.4,0.05226951]
[1742377811197,35.72707936,126.43,126.4,13.07051113]
[1742377811388,27.81777936,126.43,126.4,13.07051113]
[1742377811590,0.05777936,126.43,126.42,13.01824162]
[1742377811895,20.92494162,126.48,126.42,40.77824162]
[1742377812104,20.92494162,126.48,126.44,13.01824162]
[1742377812590,20.92494162,126.48,126.44,20.92654162]
[1742377812591,13.01824162,126.48,126.44,20.92654162]
[1742377812796,0.05432095,126.47,126.45,0.05825045]
[1742377813191,0.05432095,126.47,126.45,7.96585045]
[1742377813786,0.05432095,126.47,126.45,13.07649207]
[1742377815097,0.05432095,126.47,126.45,20.98459207]
[1742377815795,0.05432095,126.47,126.46,13.01824162]
[1742377816299,0.05432095,126.47,126.45,0.05825045]
[1742377817601,20.97936257,126.47,126.45,0.05825045]
[1742377817792,40.85256257,126.47,126.45,0.05825045]
[1742377818499,7.9074,126.46,126.45,0.05825045]
[1742377818895,48.75966257,126.47,126.45,0.05825045]
[1742377819706,7.9074,126.46,126.45,0.05825045]
[1742377822304,20.92564162,126.46,126.45,0.05825045]
[1742377844016,20.92564162,126.46,126.41,272.94]
[1742377844017,13.01824162,126.46,126.41,272.94]
[1742377844215,13.01824162,126.44,126.41,272.94]
[1742377844418,27.74,126.43,126.41,272.94]
[1742377844620,35.6496,126.43,126.41,272.94]
[1742377845320,35.70190379,126.43,126.41,272.98996403]
[1742377845521,35.70190379,126.43,126.41,0.04996403]
[1742377846319,27.79230379,126.43,126.41,0.04996403]
[1742377847322,35.70190379,126.43,126.41,0.04996403]
[1742377849217,7.9099,126.42,126.41,0.04996403]
[1742377852424,40.81054541,126.43,126.41,0.04996403]
[1742377852425,48.72004541,126.43,126.41,0.04996403]
[1742377853126,35.70180379,126.43,126.41,0.04996403]
[1742377853927,7.9099,126.42,126.41,0.04996403]
[1742377857332,20.92814162,126.42,126.41,0.04996403]
[1742377859036,48.72024541,126.43,126.41,0.04996403]
[1742377859229,35.70200379,126.43,126.41,0.04996403]
[1742377859733,35.70200379,126.43,126.41,7.96026403]
[1742377860332,0.05230379,126.43,126.42,20.92814162]
[1742377860632,27.76,126.45,126.42,13.01824162]
[1742377860836,13.01824162,126.48,126.44,7.9087]
[1742377860837,27.76,126.46,126.44,7.9087]
[1742377861229,27.76,126.46,126.42,13.01824162]
[1742377861433,40.77824162,126.46,126.41,13.01824162]
[1742377861634,13.06956235,126.45,126.43,0.05031401]
[1742377861836,35.6688,126.44,126.43,0.05031401]
[1742377862140,40.82956235,126.45,126.43,0.05031401]
[1742377862336,48.73796235,126.45,126.43,0.05031401]
[1742377862537,35.71972073,126.45,126.43,0.05031401]
[1742377862733,0.05132073,126.45,126.44,13.01824162]
[1742377863338,0.05132073,126.45,126.44,20.92694162]
[1742377863539,27.76,126.48,126.44,13.01824162]
[1742377863735,13.01824162,126.5,126.45,13.01824162]
[1742377864038,123.13280943,126.52,126.45,13.01824162]
[1742377864039,40.77824162,126.49,126.45,13.01824162]
[1742377864240,40.77824162,126.49,126.44,13.01824162]
[1742377864642,7.9066,126.48,126.45,7.9077]
[1742377864842,7.9586126,126.48,126.45,7.95901544]
[1742377865341,7.9586126,126.48,126.45,0.05131544]
[1742377865531,20.97685422,126.48,126.45,0.05131544]
[1742377865935,7.9068,126.47,126.45,0.05131544]
[1742377868537,13.01824162,126.47,126.45,0.05131544]
[1742377868938,20.92564162,126.46,126.45,0.05131544]
[1742377870947,20.92564162,126.46,126.4,42.80714162]
[1742377870948,7.9102,126.42,126.39,20.92974162]
[1742377872048,7.96467685,126.42,126.39,20.98178321]
[1742377872847,13.01824162,126.41,126.39,0.05204159]
[1742377873244,7.9112,126.4,126.39,0.05204159]
[1742377876247,48.66944162,126.4,126.39,0.05204159]
[1742377888268,13.01824162,126.39,126.34,15.21704162]
[1742377888666,7.9128,126.38,126.35,7.914]
[1742377889067,7.9128,126.38,126.34,15.21704162]
[1742377889267,0.05193931,126.37,126.35,0.05553306]
[1742377890166,0.05193931,126.37,126.36,7.9136]
[1742377891472,48.67004162,126.4,126.36,7.9136]
[1742377891473,27.76,126.42,126.36,40.77824162]
[1742377891665,40.77824162,126.43,126.39,13.01824162]
[1742377892062,13.01824162,126.44,126.39,13.01824162]
[1742377892272,40.77824162,126.44,126.39,13.01824162]
[1742377892473,48.68734162,126.44,126.41,7.9102]
[1742377892673,0.05552224,126.43,126.41,7.9102]
[1742377894276,7.96492224,126.43,126.41,7.9102]
[1742377894875,0.05552224,126.43,126.41,7.9102]
[1742377896476,7.96492224,126.43,126.4,7.96935965]
[1742377896677,13.07376386,126.43,126.4,7.96935965]
[1742377897172,7.9102,126.42,126.4,7.96935965]
[1742377897369,13.07376386,126.43,126.4,7.96935965]
[1742377897773,20.98336386,126.43,126.4,7.96935965]
[1742377898574,13.07376386,126.43,126.4,7.96935965]
[1742377899181,20.98336386,126.43,126.4,7.96935965]
[1742377899370,20.98336386,126.43,126.41,7.9103]
[1742377903183,13.07376386,126.43,126.41,7.9103]
[1742377903380,13.07376386,126.43,126.42,7.9099]
[1742377905682,13.07376386,126.43,126.41,7.9102]
[1742377905985,20.98306386,126.43,126.41,7.9102]
[1742377906481,13.07376386,126.43,126.41,7.9102]
[1742377907582,0.05552224,126.43,126.41,7.9102]
[1742377907786,0.05552224,126.43,126.42,7.9099]
[1742377909185,0.05552224,126.43,126.41,7.9103]
[1742377909384,7.96502224,126.43,126.41,7.9103]
[1742377911788,7.96502224,126.43,126.4,7.96935965]
[1742377911988,7.9101,126.42,126.4,7.96935965]
[1742377912186,13.07376386,126.43,126.4,0.05855965]
[1742377912789,20.98336386,126.43,126.41,7.9105]
[1742377914390,20.98336386,126.43,126.4,7.96945965]
[1742377914590,13.07376386,126.43,126.4,0.05855965]
[1742377914988,13.07376386,126.43,126.41,7.9105]
[1742377915592,13.07376386,126.43,126.42,7.9099]
[1742377916292,13.07376386,126.43,126.41,7.9103]
[1742377916793,13.07376386,126.43,126.4,0.05855965]
[1742377916794,0.05552224,126.43,126.42,7.9099]
[1742377919197,2.224e-05,126.43,126.42,20.92814162]
[1742377919794,2.224e-05,126.43,126.42,48.70814162]
[1742377920497,42.86834162,126.5,126.47,7.9063]
[1742377921097,50.77354162,126.5,126.47,7.9063]
[1742377921894,23.05358931,126.5,126.47,7.95980302]
[1742377922096,0.06004769,126.5,126.47,0.05350302]
[1742377922296,0.06004769,126.5,126.47,13.07174464]
[1742377922896,0.06004769,126.5,126.48,7.9059]
[1742377923199,0.06004769,126.5,126.47,13.07174464]
[1742377923498,0.06004769,126.5,126.47,7.96000302]
[1742377923499,7.96504769,126.5,126.47,7.96000302]
[1742377924792,0.06004769,126.5,126.48,7.9061]
[1742377925800,7.96504769,126.5,126.47,7.96000302]
[1742377926203,0.06004769,126.5,126.47,7.96000302]
[1742377926502,7.9056,126.49,126.47,7.96000302]
[1742377926802,0.06004769,126.5,126.47,7.96000302]
[1742377927403,7.96524769,126.5,126.48,7.9061]
[1742377930699,0.06004769,126.5,126.49,7.9056]
[1742377931003,0.06004769,126.5,126.49,20.92384162]
[1742377937112,0.06004769,126.5,126.49,7.9056]
[1742377938913,0.06004769,126.5,126.48,27.74]
[1742377938914,0.06004769,126.5,126.48,7.9059]
[1742377939716,7.96524769,126.5,126.48,7.9059]
[1742377940111,0.06004769,126.5,126.49,7.9056]
[1742377944618,0.06004769,126.5,126.48,7.9059]
[1742377944819,7.96514769,126.5,126.48,7.9059]
[1742377946818,0.06004769,126.5,126.48,7.9059]
[1742377947620,7.96524769,126.5,126.48,7.9059]
[1742377948922,0.06004769,126.5,126.49,7.9056]
[1742377951017,0.06004769,126.5,126.49,20.92384162]
[1742377960021,4.769e-05,126.5,126.49,20.92384162]
[1742377960225,4.769e-05,126.5,126.49,48.66384162]
[1742377963129,2.0274,126.56,126.53,7.9024]
[1742377963428,9.9287,126.56,126.53,7.9024]
[1742377964329,9.98830707,126.56,126.53,7.96200505]
[1742377964516,7.9018,126.55,126.53,7.96200505]
[1742377964722,15.10524869,126.56,126.53,0.05960505]
[1742377964923,13.01824162,126.55,126.53,0.05960505]
[1742377965222,40.75824162,126.55,126.53,0.05960505]
[1742377966526,7.9024,126.54,126.53,0.05960505]
[1742377966726,40.75824162,126.55,126.53,0.05960505]
[1742377967628,40.75824162,126.55,126.53,7.96260505]
[1742377970236,40.75824162,126.55,126.54,7.9024]
[1742377970534,27.74,126.55,126.53,0.05960505]
[1742377971027,27.74,126.55,126.53,7.96220505]
[1742377972833,27.74,126.55,126.54,7.9024]
[1742377973334,0.05960707,126.56,126.53,0.05960505]
[1742377973533,0.05960707,126.56,126.55,7.9018]
[1742377983434,0.05960707,126.56,126.54,20.92044162]
[1742377983634,0.05960707,126.56,126.54,7.9022]
[1742377984138,7.96100707,126.56,126.54,7.9022]
[1742377984342,0.05960707,126.56,126.54,7.9022]
[1742377985242,7.96080707,126.56,126.54,7.9022]
[1742377985541,0.05960707,126.56,126.55,7.9018]
[1742377993844,7.96080707,126.56,126.54,7.9021]
[1742377994149,0.05960707,126.56,126.53,13.07784667]
[1742377994351,0.05960707,126.56,126.55,7.9018]
[1742377997447,0.05960707,126.56,126.53,0.05960505]
[1742377997849,0.05960707,126.56,126.53,13.07784667]
[1742377998258,0.05960707,126.56,126.53,20.98064667]
[1742377999252,7.9018,126.55,126.53,20.98064667]
[1742378002250,7.9018,126.55,126.53,7.96240505]
[1742378002554,35.6218,126.55,126.53,7.96240505]
[1742378003055,7.9024,126.54,126.53,0.05960505]
[1742378004658,7.9033,126.53,126.49,272.64]
[1742378004857,35.6233,126.53,126.49,285.65824162]
[1742378005048,27.72,126.53,126.49,285.65824162]
[1742378005454,7.9037,126.52,126.5,7.9047]
[1742378005851,0.05256931,126.52,126.5,7.96011172]
[1742378007156,0.05256931,126.52,126.51,7.9043]
[1742378008558,0.05256931,126.52,126.5,7.96001172]
[1742378008758,0.05256931,126.52,126.5,0.05541172]
[1742378008960,0.05256931,126.52,126.5,13.07365334]
[1742378009760,0.05256931,126.52,126.51,7.9043]
[1742378010962,0.05256931,126.52,126.5,20.97825334]
[1742378011261,0.05256931,126.52,126.5,13.07365334]
[1742378011663,0.05256931,126.52,126.51,7.9043]
[1742378012958,7.95636931,126.52,126.5,13.07365334]
[1742378013259,0.05256931,126.52,126.5,0.05541172]
[1742378013861,7.95646931,126.52,126.5,0.05541172]
[1742378014753,7.95646931,126.52,126.5,7.96031172]
[1742378015660,0.05256931,126.52,126.5,0.05541172]
[1742378015963,0.05256931,126.52,126.51,7.9043]
[1742378017560,0.05256931,126.52,126.51,20.92254162]
[1742378017864,27.72,126.55,126.51,13.01824162]
[1742378018062,27.72,126.55,126.53,13.01824162]
[1742378018764,27.77483766,126.55,126.53,13.07103636]
[1742378018964,0.05483766,126.55,126.54,20.92064162]
[1742378019165,0.05483766,126.55,126.54,7.9024]
[1742378020466,0.05483766,126.55,126.54,20.92064162]
[1742378025869,0.05483766,126.55,126.54,7.9024]
[1742378026369,0.05483766,126.55,126.53,7.95549474]
[1742378028571,0.05483766,126.55,126.54,7.9024]
[1742378032670,7.95723766,126.55,126.53,0.05279474]
[1742378033175,7.95723766,126.55,126.53,7.95569474]
[1742378033779,7.95723766,126.55,126.53,0.05279474]
[1742378037273,7.95723766,126.55,126.53,7.95579474]
[1742378038770,20.92064162,126.54,126.53,0.05279474]
[1742378038968,48.64064162,126.54,126.53,0.05279474]
[1742378040069,35.6224,126.54,126.53,0.05279474]
[1742378042178,27.72,126.54,126.53,0.05279474]
[1742378042980,48.64064162,126.54,126.53,0.05279474]
[1742378043876,35.6224,126.54,126.53,0.05279474]
[1742378045679,0.05483766,126.55,126.54,7.9024]
[1742378045879,0.05483766,126.55,126.54,20.92064162]
[1742378046082,27.72,126.57,126.54,13.01824162]
[1742378046281,27.72,126.58,126.56,7.9007]
[1742378046484,20.91724162,126.6,126.55,13.01824162]
[1742378046684,40.73824162,126.59,126.55,13.01824162]
[1742378046885,40.73824162,126.59,126.52,27.72]
[1742378046886,27.72,126.59,126.57,7.9001]
[1742378047080,27.72,126.59,126.57,7.95952754]
[1742378047285,27.77528397,126.59,126.57,0.05942754]
[1742378047486,0.05528397,126.59,126.58,7.8999]
[1742378048588,0.05528397,126.59,126.57,0.05942754]
[1742378048782,13.07352559,126.59,126.57,0.05942754]
[1742378048982,20.97302559,126.59,126.57,0.05942754]
[1742378049182,27.72,126.58,126.57,0.05942754]
[1742378049682,27.72,126.58,126.57,7.96002754]
[1742378049892,13.07352559,126.59,126.57,7.96002754]
[1742378050092,40.79352559,126.59,126.57,7.96002754]
[1742378050790,27.77528397,126.59,126.57,7.96002754]
[1742378054293,27.77528397,126.59,126.58,7.8999]
[1742378054593,27.77528397,126.59,126.57,0.05942754]
[1742378054795,27.77528397,126.59,126.57,7.95942754]